bitfinex-derivatives/quotes_BTCF0:USTF0_20241208
["timestamp","ask_amount","ask_price","bid_price","bid_amount"]
[1733634459336,0.04644516,99811.0,99810.0,0.007]
[1733634462932,0.04644516,99811.0,99792.0,0.01]
[1733634462933,0.035046,99793.0,99792.0,0.01]
[1733634463137,0.035046,99793.0,99790.0,0.00012418]
[1733634463138,0.035046,99791.0,99790.0,0.00064418]
[1733634463329,0.035046,99791.0,99790.0,0.0596097]
[1733634464235,0.035046,99791.0,99790.0,0.05647891]
[1733634464742,0.036046,99791.0,99790.0,0.06447891]
[1733634464927,0.036046,99791.0,99790.0,0.05946905]
[1733634465132,0.036046,99791.0,99790.0,0.01125572]
[1733634465735,0.037046,99791.0,99790.0,0.01125572]
[1733634466337,0.037046,99791.0,99790.0,0.00325572]
[1733634466638,0.037046,99791.0,99790.0,0.00826619]
[1733634467039,0.037046,99791.0,99790.0,0.00325572]
[1733634467242,0.037046,99791.0,99790.0,0.05146905]
[1733634467243,0.04948054,99791.0,99790.0,0.05146905]
[1733634467538,0.04948054,99791.0,99790.0,0.05647953]
[1733634471842,0.04948054,99791.0,99790.0,0.00325572]
[1733634472741,0.04948054,99791.0,99790.0,0.00012418]
[1733634472947,0.04948054,99791.0,99790.0,0.00325576]
[1733634475140,0.04948054,99791.0,99790.0,0.00826628]
[1733634475542,0.04948054,99791.0,99790.0,0.00325576]
[1733634476248,0.04948054,99791.0,99790.0,0.00826638]
[1733634477750,0.41028054,99791.0,99790.0,0.00826638]
[1733634480159,0.41028054,99791.0,99790.0,0.01452986]
[1733634481543,0.41028054,99791.0,99790.0,0.0063875]
[1733634481849,0.41028054,99791.0,99790.0,0.01452981]
[1733634482442,0.035052,99776.0,99775.0,0.18019562]
[1733634482742,0.035052,99776.0,99775.0,0.0062638]
[1733634482940,0.035052,99776.0,99775.0,0.05447713]
[1733634483652,0.036052,99776.0,99775.0,0.05747713]
[1733634484049,0.036052,99776.0,99775.0,0.23767275]
[1733634484354,0.036052,99776.0,99775.0,0.05747713]
[1733634484538,0.037052,99776.0,99775.0,0.05747713]
[1733634485148,0.037052,99776.0,99775.0,0.05747708]
[1733634485345,0.037052,99776.0,99775.0,0.05815572]
[1733634485853,0.037052,99776.0,99775.0,0.29477869]
[1733634485854,0.036052,99776.0,99775.0,0.29477869]
[1733634486051,0.037052,99776.0,99775.0,0.29777869]
[1733634486551,0.037052,99776.0,99775.0,0.05747708]
[1733634486752,0.037052,99776.0,99775.0,0.29777869]
[1733634487048,0.037052,99776.0,99775.0,0.05747708]
[1733634488346,0.037052,99776.0,99775.0,0.05747694]
[1733634489156,0.037052,99776.0,99775.0,0.12422894]
[1733634491653,0.037052,99776.0,99775.0,0.12422877]
[1733634492560,0.037052,99776.0,99775.0,0.12923954]
[1733634493244,0.037052,99776.0,99775.0,0.30935758]
[1733634493446,0.037052,99776.0,99775.0,0.12923954]
[1733634493853,0.037052,99776.0,99775.0,0.30935618]
[1733634494354,0.037052,99776.0,99775.0,0.12923954]
[1733634494555,0.037052,99776.0,99775.0,0.13237134]
[1733634495142,0.037052,99776.0,99775.0,0.13237161]
[1733634495348,0.037052,99776.0,99775.0,0.31248528]
[1733634495643,0.037052,99776.0,99775.0,0.13237161]
[1733634496858,0.037052,99776.0,99775.0,0.37236687]
[1733634497049,0.037052,99776.0,99775.0,0.13237161]
[1733634498451,0.037052,99776.0,99775.0,0.37236687]
[1733634498959,0.037052,99776.0,99775.0,0.13237161]
[1733634499454,0.037052,99776.0,99775.0,0.37236687]
[1733634499658,0.037052,99776.0,99775.0,0.13237161]
[1733634500754,0.037052,99776.0,99775.0,0.37236687]
[1733634500960,0.037052,99776.0,99775.0,0.13237161]
[1733634502347,0.037052,99776.0,99775.0,0.13305096]
[1733634502750,0.037052,99776.0,99775.0,0.09731961]
[1733634503463,0.037052,99776.0,99775.0,0.09799896]
[1733634504157,0.037052,99776.0,99775.0,0.3382239]
[1733634504461,0.037052,99776.0,99775.0,0.33822398]
[1733634504658,0.037052,99776.0,99775.0,0.27820345]
[1733634505056,0.037052,99776.0,99775.0,0.09799904]
[1733634505358,0.037052,99776.0,99775.0,0.09799906]
[1733634506855,0.037052,99776.0,99775.0,0.01808573]
[1733634507056,0.037052,99776.0,99775.0,0.01740628]
[1733634507256,0.037052,99776.0,99775.0,0.19763937]
[1733634507558,0.037052,99776.0,99775.0,0.01740628]
[1733634508159,0.037052,99776.0,99775.0,0.19763937]
[1733634511564,0.037052,99776.0,99775.0,0.01740628]
[1733634511870,0.15690343,99776.0,99775.0,0.01740628]
[1733634512369,0.15690332,99776.0,99775.0,0.01740628]
[1733634516166,0.15690332,99776.0,99775.0,0.25782166]
[1733634516167,0.037052,99776.0,99775.0,0.25782166]
[1733634516485,0.08576775,99776.0,99775.0,0.01740628]
[1733634517081,0.0857685,99776.0,99775.0,0.01740628]
[1733634517388,0.03505,99771.0,99770.0,0.00012749]
[1733634517570,0.39585,99771.0,99770.0,0.00012749]
[1733634517774,0.44456767,99771.0,99770.0,0.00012749]
[1733634518466,0.54557802,99771.0,99770.0,0.00012749]
[1733634518668,0.54657802,99771.0,99770.0,0.00312749]
[1733634519368,0.54757802,99771.0,99770.0,0.00312749]
[1733634519777,0.44656781,99771.0,99770.0,0.00312749]
[1733634519980,0.41151781,99771.0,99756.0,0.00067997]
[1733634520278,0.41151781,99771.0,99755.0,0.24109535]
[1733634520279,0.035055,99756.0,99755.0,0.24109535]
[1733634520472,0.035055,99756.0,99755.0,0.00067997]
[1733634520676,0.035055,99756.0,99755.0,0.0488933]
[1733634521272,0.035055,99756.0,99755.0,0.04821333]
[1733634521964,0.036055,99756.0,99755.0,0.04821333]
[1733634523175,0.12681472,99756.0,99755.0,0.04821333]
[1733634523375,0.037055,99756.0,99755.0,0.04821333]
[1733634524890,0.12679553,99756.0,99755.0,0.04821333]
[1733634525076,0.037055,99756.0,99755.0,0.04821333]
[1733634525276,0.12679553,99756.0,99755.0,0.05447791]
[1733634525486,0.037055,99756.0,99755.0,0.04821333]
[1733634525776,0.037055,99756.0,99755.0,0.05447791]
[1733634527376,0.037055,99756.0,99755.0,0.05948958]
[1733634528175,0.04925073,99756.0,99755.0,0.05948958]
[1733634529277,0.04925073,99756.0,99755.0,0.0626219]
[1733634530484,0.03506,99744.0,99743.0,0.00067969]
[1733634530683,0.04925073,99756.0,99728.0,0.0314]
[1733634530684,0.035062,99736.0,99730.0,0.31073769]
[1733634530984,0.08973328,99745.0,99728.0,0.0314]
[1733634530985,0.035065,99729.0,99728.0,0.0314]
[1733634531188,0.035065,99729.0,99728.0,0.35382738]
[1733634531484,0.035065,99729.0,99728.0,0.0314]
[1733634532173,0.036065,99729.0,99728.0,0.0314]
[1733634532980,0.037065,99729.0,99728.0,0.0314]
[1733634535787,0.037065,99729.0,99723.0,0.00150413]
[1733634535788,0.035067,99724.0,99723.0,0.00150413]
[1733634537386,0.036067,99724.0,99723.0,0.00150413]
[1733634537793,0.037067,99724.0,99723.0,0.00150413]
[1733634538493,0.037067,99724.0,99723.0,0.0077708]
[1733634540487,0.037067,99724.0,99723.0,0.01278408]
[1733634541790,0.037067,99724.0,99723.0,0.01278401]
[1733634542388,0.037067,99724.0,99723.0,0.0159173]
[1733634544697,0.037067,99724.0,99723.0,0.00150413]
[1733634544895,0.037067,99724.0,99723.0,0.01591694]
[1733634549894,0.037067,99724.0,99723.0,0.01441281]
[1733634551396,0.037067,99724.0,99723.0,0.0144131]
[1733634551900,0.037067,99724.0,99723.0,0.00814653]
[1733634552100,0.037067,99724.0,99723.0,0.01441317]
[1733634557709,0.037067,99724.0,99720.0,0.000767]
[1733634557710,0.12680028,99724.0,99720.0,8.851e-05]
[1733634557910,0.035068,99721.0,99720.0,8.851e-05]
[1733634558409,0.035068,99721.0,99720.0,0.01450178]
[1733634560112,0.036068,99721.0,99720.0,0.01450178]
[1733634560410,0.037068,99721.0,99720.0,0.01450178]
[1733634563612,0.15671237,99721.0,99720.0,0.01450178]
[1733634564813,0.15671237,99721.0,99720.0,0.34093829]
[1733634564814,0.037068,99721.0,99720.0,0.34093829]
[1733634565116,0.12703752,99721.0,99720.0,0.34093829]
[1733634565301,0.037068,99721.0,99720.0,0.01450178]
[1733634565501,0.15671237,99721.0,99720.0,0.01450178]
[1733634565701,0.037068,99721.0,99720.0,0.01450178]
[1733634565907,0.037068,99721.0,99720.0,7.8e-07]
[1733634566307,0.18684473,99721.0,99720.0,7.8e-07]
[1733634566514,0.037068,99721.0,99720.0,7.8e-07]
[1733634566917,0.0848084,99721.0,99720.0,7.8e-07]
[1733634567316,0.18678069,99721.0,99720.0,7.8e-07]
[1733634567612,0.08580976,99721.0,99720.0,7.8e-07]
[1733634568318,0.44660976,99721.0,99720.0,7.8e-07]
[1733634569313,0.6260752,99721.0,99720.0,7.8e-07]
[1733634569704,0.6250752,99721.0,99720.0,7.8e-07]
[1733634569906,0.6260752,99721.0,99720.0,7.8e-07]
[1733634570221,0.44660976,99721.0,99704.0,0.01]
[1733634570409,0.44660976,99721.0,99702.0,0.00068156]
[1733634570410,0.035074,99703.0,99702.0,0.00068156]
[1733634570610,0.08969917,99703.0,99700.0,0.10009908]
[1733634570809,0.035075,99701.0,99700.0,0.10009908]
[1733634571307,0.035075,99701.0,99700.0,0.11508779]
[1733634571506,0.035075,99701.0,99700.0,0.10009908]
[1733634572409,0.036075,99701.0,99700.0,0.10009908]
[1733634572611,0.036075,99701.0,99700.0,0.10077963]
[1733634573003,0.036075,99701.0,99700.0,0.10009908]
[1733634573206,0.037075,99701.0,99700.0,0.10009908]
[1733634573823,0.037075,99701.0,99700.0,0.10636658]
[1733634574022,0.037075,99701.0,99700.0,0.12134044]
[1733634574217,0.037075,99701.0,99700.0,0.10636658]
[1733634575116,0.037075,99701.0,99700.0,0.12132845]
[1733634575413,0.037075,99701.0,99700.0,0.11506095]
[1733634575616,0.037075,99701.0,99700.0,0.12132814]
[1733634575809,0.037075,99701.0,99700.0,0.11138036]
[1733634576715,0.037075,99701.0,99700.0,0.12638574]
[1733634576920,0.037075,99701.0,99700.0,0.11138036]
[1733634577823,0.037075,99701.0,99700.0,0.12947493]
[1733634578020,0.037075,99701.0,99700.0,0.11451395]
[1733634578716,0.037075,99701.0,99700.0,0.12946847]
[1733634578913,0.037075,99701.0,99700.0,0.11451461]
[1733634579314,0.037075,99701.0,99700.0,0.12946821]
[1733634579620,0.037075,99701.0,99700.0,0.11451461]
[1733634579821,0.13866509,99701.0,99700.0,0.11451461]
[1733634580115,0.13866509,99701.0,99700.0,0.12947646]
[1733634580316,0.04896592,99701.0,99700.0,0.11451461]
[1733634581316,0.04896592,99701.0,99700.0,0.01256761]
[1733634581617,0.16856505,99701.0,99700.0,6.1e-07]
[1733634582029,0.04896592,99701.0,99700.0,6.1e-07]
[1733634582316,0.04896592,99701.0,99692.0,0.0307]
[1733634582520,0.04896592,99701.0,99698.0,0.0006803]
[1733634582521,0.035075,99699.0,99698.0,0.0006803]
[1733634582714,0.035075,99699.0,99698.0,0.00068032]
[1733634582915,0.04896592,99701.0,99694.0,0.00068032]
[1733634582916,0.035077,99695.0,99694.0,0.00068032]
[1733634583223,0.08951731,99697.0,99694.0,0.00068032]
[1733634583428,0.45031731,99697.0,99694.0,0.00068032]
[1733634584015,0.035078,99691.0,99690.0,0.0311]
[1733634584217,0.035078,99691.0,99690.0,0.04607701]
[1733634584412,0.035078,99691.0,99690.0,0.01497701]
[1733634584619,0.035079,99689.0,99688.0,0.00063909]
[1733634584933,0.035079,99689.0,99688.0,0.01507255]
[1733634585816,0.035079,99689.0,99686.0,0.00063923]
[1733634586019,0.03508,99687.0,99686.0,0.00063923]
[1733634586321,0.03508,99686.0,99674.0,0.0963]
[1733634586624,0.035083,99676.0,99675.0,0.01507043]
[1733634587825,0.036083,99676.0,99675.0,0.01507043]
[1733634588326,0.037083,99676.0,99675.0,0.01507043]
[1733634589528,0.037083,99676.0,99675.0,0.02133841]
[1733634589722,0.037083,99676.0,99675.0,0.38213841]
[1733634589926,0.01451988,99676.0,99675.0,0.38213841]
[1733634590122,0.002,99676.0,99675.0,0.38213841]
[1733634590312,0.035083,99676.0,99675.0,0.38213841]
[1733634591527,0.035083,99676.0,99675.0,0.38715279]
[1733634592821,0.035083,99676.0,99675.0,0.37587043]
[1733634593023,0.035083,99676.0,99675.0,0.38715279]
[1733634593220,0.035083,99676.0,99675.0,0.37587043]
[1733634593419,0.035083,99676.0,99675.0,0.39028679]
[1733634595424,0.035083,99676.0,99675.0,0.43477204]
[1733634595624,0.035083,99676.0,99675.0,0.66511965]
[1733634595938,0.035083,99676.0,99675.0,0.63003565]
[1733634596128,0.035083,99676.0,99675.0,0.39028679]
[1733634596629,0.035083,99676.0,99675.0,0.39028565]
[1733634601831,0.12480341,99676.0,99675.0,0.39028565]
[1733634602036,0.035083,99676.0,99675.0,0.42536965]
[1733634602235,0.035083,99676.0,99675.0,0.41095443]
[1733634602427,0.035083,99676.0,99675.0,0.42537099]
[1733634602744,0.035083,99676.0,99675.0,0.39028701]
[1733634603444,0.037083,99676.0,99675.0,0.6316117]
[1733634604431,0.037083,99676.0,99675.0,0.39128701]
[1733634605044,0.01451769,99676.0,99675.0,0.39128701]
[1733634605339,0.002,99676.0,99675.0,0.39128701]
[1733634605734,0.002,99676.0,99675.0,0.39128597]
[1733634605937,0.037083,99676.0,99675.0,0.39128597]
[1733634606638,0.037083,99676.0,99675.0,0.39028597]
[1733634606639,0.036083,99676.0,99675.0,0.39028597]
[1733634607035,0.037083,99676.0,99675.0,0.39028597]
[1733634607456,0.035083,99676.0,99675.0,0.39028597]
[1733634607636,0.037083,99676.0,99675.0,0.39028597]
[1733634609143,0.15670381,99676.0,99675.0,0.39028597]
[1733634609331,0.037083,99676.0,99675.0,0.39028597]
[1733634609727,0.038083,99676.0,99675.0,0.39028597]
[1733634610736,0.036083,99676.0,99675.0,0.39028597]
[1733634610935,0.040083,99676.0,99675.0,0.39028597]
[1733634611341,0.036083,99676.0,99675.0,0.39028597]
[1733634611535,0.040083,99676.0,99675.0,0.39028597]
[1733634612235,0.040083,99676.0,99675.0,0.02948597]
[1733634612635,0.039083,99676.0,99675.0,0.02948597]
[1733634612838,0.44964365,99676.0,99659.0,0.24032469]
[1733634613038,0.44964365,99676.0,99649.0,0.035093]
[1733634613039,0.035089,99660.0,99658.0,0.24032469]
[1733634613345,0.11958677,99667.0,99657.0,0.24039481]
[1733634613346,0.03509,99658.0,99657.0,0.24039481]
[1733634613531,0.11958677,99667.0,99657.0,0.2848971]
[1733634613733,0.11958677,99667.0,99658.0,0.00940189]
[1733634613934,0.035091,99655.0,99654.0,0.24039481]
[1733634614134,0.035091,99655.0,99653.0,0.24039481]
[1733634614346,0.035091,99655.0,99654.0,0.04450234]
[1733634614544,0.06313604,99663.0,99652.0,0.602141]
[1733634614841,0.035092,99653.0,99652.0,0.36174619]
[1733634615048,0.035092,99653.0,99652.0,0.24130756]
[1733634615238,0.035092,99653.0,99652.0,0.00094619]
[1733634616345,0.035092,99651.0,99643.0,0.06407553]
[1733634616546,0.035092,99651.0,99630.0,0.01]
[1733634616547,0.035099,99631.0,99630.0,0.01]
[1733634616846,0.11942109,99640.0,99638.0,0.035097]
[1733634617063,0.035095,99643.0,99641.0,0.035096]
[1733634617355,0.0117441,99653.0,99639.0,0.0891]
[1733634617538,0.035096,99640.0,99639.0,0.0891]
[1733634617939,0.035096,99640.0,99639.0,0.12926]
[1733634619142,0.035096,99640.0,99639.0,0.0891]
[1733634619348,0.035096,99640.0,99639.0,0.0901]
[1733634619849,0.036096,99640.0,99639.0,0.0578]
[1733634621044,0.03711655,99640.0,99639.0,0.0578]
[1733634621843,0.03732289,99640.0,99639.0,0.0578]
[1733634622344,0.03732289,99640.0,99639.0,0.0316]
[1733634623045,0.03767481,99640.0,99639.0,0.0316]
[1733634623243,0.3608,99646.0,99639.0,0.0316]
[1733634623441,0.36192001,99655.0,99652.0,0.035092]
[1733634623643,0.03509,99659.0,99645.0,0.3608]
[1733634623644,0.03509,99659.0,99653.0,0.098991]
[1733634624049,0.03509,99658.0,99653.0,0.098991]
[1733634624244,0.3608,99663.0,99654.0,0.00501681]
[1733634624245,0.45750806,99663.0,99654.0,0.00501681]
[1733634624547,0.45750806,99663.0,99653.0,0.139151]
[1733634624548,0.03509,99657.0,99653.0,0.139151]
[1733634624756,0.03509,99657.0,99654.0,0.00501682]
[1733634624954,0.36192001,99663.0,99662.0,0.035088]
[1733634625246,8.415e-05,99670.0,99669.0,0.035086]
[1733634625450,0.40745629,99682.0,99669.0,0.00815194]
[1733634625451,0.035082,99681.0,99669.0,0.00815194]
[1733634625645,0.035082,99681.0,99675.0,0.035083]
[1733634625848,0.0138553,99682.0,99676.0,0.07045117]
[1733634626049,0.01157529,99682.0,99680.0,0.035082]
[1733634626247,0.09670806,99690.0,99681.0,0.0782933]
[1733634626449,0.09670806,99690.0,99682.0,0.00313545]
[1733634626450,0.13190697,99690.0,99682.0,0.00313545]
[1733634626648,0.09682797,99690.0,99683.0,0.00313545]
[1733634626847,0.035079,99689.0,99684.0,0.00313545]
[1733634627040,0.035079,99689.0,99685.0,0.00313545]
[1733634627245,0.035079,99689.0,99686.0,0.00313545]
[1733634627452,0.00011991,99690.0,99681.0,0.07515785]
[1733634627740,0.03508,99686.0,99682.0,0.0031346]
[1733634627945,0.03508,99685.0,99683.0,0.0031346]
[1733634628146,0.03508,99685.0,99681.0,0.04007585]
[1733634628147,0.03508,99685.0,99684.0,0.0031346]
[1733634628345,0.00011991,99690.0,99681.0,0.04007585]
[1733634628346,0.36091991,99690.0,99681.0,0.04007585]
[1733634628649,0.395881,99682.0,99681.0,0.04007585]
[1733634628847,0.395881,99682.0,99681.0,0.04321068]
[1733634629243,0.395881,99682.0,99681.0,0.04007585]
[1733634629548,0.035081,99682.0,99681.0,0.04321075]
[1733634629747,0.003,99685.0,99681.0,0.04321075]
[1733634629950,0.035079,99688.0,99682.0,0.0031349]
[1733634630145,0.035079,99688.0,99683.0,0.0031349]
[1733634630450,0.035079,99688.0,99681.0,0.04007585]
[1733634630451,0.008,99685.0,99684.0,0.00313464]
[1733634630954,0.006,99685.0,99684.0,0.00313464]
[1733634631354,0.03508,99687.0,99684.0,0.00313464]
[1733634631551,0.03508,99687.0,99681.0,0.04007585]
[1733634631552,0.03508,99687.0,99685.0,0.00313464]
[1733634631755,0.03508,99687.0,99686.0,0.00313464]
[1733634632652,0.15430366,99687.0,99686.0,0.00313464]
[1733634633149,0.15830366,99687.0,99686.0,0.00313464]
[1733634633355,0.03908,99687.0,99686.0,0.00313464]
[1733634633561,0.04708,99687.0,99686.0,0.00313464]
[1733634633947,0.16630631,99687.0,99686.0,0.00313464]
[1733634635355,0.16630631,99687.0,99685.0,0.03508]
[1733634635658,0.04708,99687.0,99685.0,0.03508]
[1733634635860,0.04708,99687.0,99686.0,0.00313457]
[1733634636659,0.04608,99687.0,99686.0,0.00313457]
[1733634637475,0.04608,99687.0,99686.0,0.00313453]
[1733634638147,0.04308,99687.0,99686.0,0.00313453]
[1733634638356,0.04708,99687.0,99686.0,0.00313453]
[1733634638566,0.04708,99687.0,99686.0,0.03821453]
[1733634638860,0.36203992,99690.0,99689.0,0.035079]
[1733634639058,0.36091991,99690.0,99689.0,0.03821353]
[1733634640164,0.00011991,99690.0,99689.0,0.03821353]
[1733634640354,0.035074,99702.0,99701.0,0.035073]
[1733634640559,0.11922631,99706.0,99705.0,0.035073]
[1733634640560,0.035073,99706.0,99705.0,0.035073]
[1733634641966,0.040073,99706.0,99705.0,0.036073]
[1733634642257,0.040073,99706.0,99705.0,0.03920704]
[1733634643361,0.040073,99706.0,99705.0,0.037073]
[1733634643362,0.049073,99706.0,99705.0,0.037073]
[1733634643761,0.049073,99706.0,99705.0,0.04020704]
[1733634643762,0.014,99706.0,99705.0,0.04020704]
[1733634644354,0.014,99706.0,99705.0,0.0452211]
[1733634644870,0.014,99706.0,99705.0,0.0452208]
[1733634645365,0.014,99706.0,99705.0,0.08529665]
[1733634646065,0.014,99706.0,99705.0,0.08529661]
[1733634647152,0.014,99706.0,99705.0,0.0802826]
[1733634647665,0.014,99706.0,99705.0,0.08529663]
[1733634648368,0.049073,99706.0,99705.0,0.08529663]
[1733634648758,0.049073,99706.0,99705.0,0.0802826]
[1733634651064,0.014,99706.0,99705.0,0.08028272]
[1733634651262,0.014,99706.0,99705.0,0.08529691]
[1733634652773,0.014,99706.0,99705.0,0.07714885]
[1733634653069,0.014,99706.0,99705.0,0.0852969]
[1733634654270,0.014,99706.0,99705.0,0.09156444]
[1733634654459,0.014,99706.0,99705.0,0.07714885]
[1733634654771,0.014,99706.0,99705.0,0.09156419]
[1733634655273,0.014,99706.0,99705.0,0.45236419]
[1733634655672,0.014,99706.0,99705.0,0.46489847]
[1733634656564,0.00012492,99710.0,99709.0,0.035072]
[1733634656766,0.12910189,99723.0,99722.0,0.035067]
[1733634656961,0.3608,99728.0,99722.0,0.0081478]
[1733634656962,0.15416889,99724.0,99722.0,0.0081478]
[1733634657165,0.035067,99724.0,99723.0,0.1086148]
[1733634658071,0.037067,99724.0,99723.0,0.10861376]
[1733634658470,0.037067,99724.0,99723.0,0.10360037]
[1733634659477,0.039067,99724.0,99723.0,0.10360037]
[1733634659874,0.037067,99724.0,99723.0,0.10360037]
[1733634660074,0.039067,99724.0,99723.0,0.10360037]
[1733634660868,0.039067,99724.0,99723.0,0.10360051]
[1733634661378,0.039067,99724.0,99723.0,0.10861413]
[1733634661379,0.399867,99724.0,99723.0,0.10861413]
[1733634663683,0.399867,99724.0,99723.0,0.10861411]
[1733634665077,0.3648,99724.0,99723.0,0.11488084]
[1733634665880,0.004,99724.0,99723.0,0.11488084]
[1733634666476,0.039067,99724.0,99723.0,0.11488084]
[1733634667177,0.039067,99724.0,99723.0,0.11488013]
[1733634667379,0.039067,99724.0,99723.0,0.11549467]
[1733634668277,0.039067,99724.0,99723.0,0.11488013]
[1733634669482,0.15855057,99724.0,99723.0,0.11488013]
[1733634670282,0.004,99724.0,99723.0,0.11488013]
[1733634670579,0.12355179,99724.0,99723.0,0.11488013]
[1733634670772,0.004,99724.0,99723.0,0.11488013]
[1733634672292,0.12355179,99724.0,99723.0,0.11488013]
[1733634673182,0.004,99724.0,99723.0,0.11488013]
[1733634673383,0.12355179,99724.0,99723.0,0.11488013]
[1733634673784,0.12355179,99724.0,99723.0,0.11174677]
[1733634673989,0.12355179,99724.0,99723.0,0.11488004]
[1733634674191,0.12355179,99724.0,99723.0,0.100467]
[1733634674192,0.15861879,99724.0,99723.0,0.100467]
[1733634674378,0.15861879,99724.0,99723.0,0.11488004]
[1733634675288,0.15861879,99724.0,99723.0,0.15495589]
[1733634675686,0.039067,99724.0,99723.0,0.15495589]
[1733634678785,0.039067,99724.0,99723.0,0.15557108]
[1733634678991,0.039067,99724.0,99723.0,0.15495589]
[1733634681190,0.039067,99724.0,99723.0,0.15557136]
[1733634682196,0.039067,99724.0,99723.0,0.15495589]
[1733634684193,0.039067,99724.0,99723.0,0.15495614]
[1733634685997,0.039067,99724.0,99723.0,0.15495642]
[1733634686191,0.039067,99724.0,99723.0,0.33521029]
[1733634687988,0.039067,99724.0,99723.0,0.15495642]
[1733634688393,0.039067,99724.0,99722.0,0.0313]
[1733634688600,0.039067,99724.0,99723.0,0.18032419]
[1733634688790,0.039067,99724.0,99723.0,0.21539119]
[1733634689490,0.037067,99724.0,99723.0,0.035067]
[1733634689799,0.039067,99724.0,99723.0,0.035067]
[1733634690008,0.08780172,99724.0,99723.0,0.035067]
[1733634690203,0.08580172,99724.0,99723.0,0.035067]
[1733634690493,0.08880172,99724.0,99723.0,0.035067]
[1733634691701,0.44960172,99724.0,99723.0,0.035067]
[1733634692399,0.400867,99724.0,99723.0,0.035067]
[1733634692698,0.400867,99724.0,99723.0,0.04759956]
[1733634692699,0.3658,99724.0,99723.0,0.04759956]
[1733634692995,0.3658,99724.0,99723.0,0.0615811]
[1733634693197,0.005,99724.0,99723.0,0.37250781]
[1733634693695,0.005,99724.0,99723.0,0.35852627]
[1733634694197,0.005,99724.0,99723.0,0.05868293]
[1733634694494,0.005,99724.0,99723.0,0.35852627]
[1733634694695,0.005,99724.0,99723.0,0.05868293]
[1733634694902,0.005,99724.0,99723.0,0.35852627]
[1733634695093,0.005,99724.0,99723.0,0.374212]
[1733634695295,0.005,99724.0,99723.0,0.67455419]
[1733634695694,0.005,99724.0,99723.0,0.3731324]
[1733634695895,0.005,99724.0,99723.0,0.05868293]
[1733634696499,0.005,99724.0,99723.0,0.06494896]
[1733634697291,0.005,99724.0,99723.0,0.36582135]
[1733634697511,0.005,99724.0,99723.0,0.37974042]
[1733634697699,0.005,99724.0,99723.0,0.06494896]
[1733634697895,0.005,99724.0,99723.0,0.06494821]
[1733634698101,0.005,99724.0,99723.0,0.68033778]
[1733634698402,0.005,99724.0,99723.0,0.06494821]
[1733634698591,0.005,99724.0,99723.0,0.06996091]
[1733634698793,0.00010327,99730.0,99729.0,0.035065]
[1733634699005,0.36090327,99730.0,99729.0,0.04634373]
[1733634699997,0.36690327,99730.0,99729.0,0.04734373]
[1733634700599,0.36690327,99730.0,99729.0,0.05047674]
[1733634702596,0.40196727,99730.0,99729.0,0.04233103]
[1733634702796,0.40196727,99730.0,99729.0,0.03919801]
[1733634703003,0.40196727,99730.0,99729.0,0.05047684]
[1733634703401,0.40196727,99730.0,99729.0,0.05109242]
[1733634703608,0.40196727,99730.0,99729.0,0.05047684]
[1733634706502,0.40196727,99730.0,99729.0,0.23070505]
[1733634706712,0.40196727,99730.0,99729.0,0.05047684]
[1733634707304,0.40196727,99730.0,99729.0,0.05109251]
[1733634707506,0.40196727,99730.0,99729.0,0.05109248]
[1733634709509,0.40196727,99730.0,99729.0,0.2306786]
[1733634709709,0.36690327,99730.0,99729.0,0.05047684]
[1733634710818,0.36690327,99730.0,99729.0,0.15074807]
[1733634711113,0.3608,99738.0,99737.0,0.035062]
[1733634711305,0.3608,99738.0,99737.0,0.06200593]
[1733634711702,0.3608,99738.0,99737.0,0.17612622]
[1733634712108,0.3638,99738.0,99737.0,0.17612622]
[1733634712408,0.3638,99738.0,99737.0,0.16227342]
[1733634712807,0.3638,99738.0,99737.0,0.17660117]
[1733634715217,0.3638,99738.0,99737.0,0.17660123]
[1733634715605,0.003,99738.0,99737.0,0.17660121]
[1733634718718,0.003,99738.0,99737.0,0.17660059]
[1733634719512,0.005,99747.0,99746.0,0.035059]
[1733634719713,0.3608,99750.0,99749.0,0.035058]
[1733634719911,0.3608,99750.0,99749.0,0.04946729]
[1733634720913,0.3608,99750.0,99749.0,0.06199641]
[1733634721209,0.0331,99754.0,99749.0,0.02693841]
[1733634721408,0.0331,99754.0,99746.0,0.21500368]
[1733634721409,0.0331,99754.0,99753.0,0.03567098]
[1733634721609,0.11971076,99755.0,99754.0,0.035056]
[1733634721820,0.0118,99757.0,99756.0,0.035055]
[1733634722114,0.0118,99757.0,99756.0,0.04946429]
[1733634722614,0.13149671,99757.0,99756.0,0.04946429]
[1733634722825,0.0118,99757.0,99756.0,0.04946429]
[1733634723320,0.11969671,99758.0,99757.0,0.035055]
[1733634723522,0.48161672,99759.0,99758.0,0.035055]
[1733634723723,0.48049671,99759.0,99758.0,0.04946429]
[1733634723919,0.3608,99759.0,99758.0,0.04946429]
[1733634724721,0.3608,99759.0,99758.0,0.035055]
[1733634724918,0.3608,99759.0,99758.0,0.04946261]
[1733634725110,0.3648,99759.0,99758.0,0.05046261]
[1733634726816,0.004,99759.0,99758.0,0.05046261]
[1733634727719,0.004,99759.0,99758.0,0.05046266]
[1733634731221,0.004,99759.0,99758.0,0.05046212]
[1733634733128,0.004,99759.0,99758.0,0.05107638]
[1733634734027,0.004,99759.0,99758.0,0.05046212]
[1733634734417,0.004,99759.0,99758.0,0.04545136]
[1733634734617,0.004,99759.0,99758.0,0.05046275]
[1733634736839,0.004,99759.0,99758.0,0.05107698]
[1733634737235,0.004,99759.0,99758.0,0.05046275]
[1733634738237,0.09368263,99759.0,99758.0,0.05046275]
[1733634739240,0.004,99759.0,99758.0,0.05046275]
[1733634740938,0.12369671,99759.0,99758.0,0.05046275]
[1733634741244,0.004,99759.0,99758.0,0.05046275]
[1733634742345,0.12369671,99759.0,99758.0,0.05046275]
[1733634744344,0.004,99759.0,99758.0,0.05046275]
[1733634744544,0.05271435,99759.0,99758.0,0.05046275]
[1733634744749,0.05271435,99759.0,99758.0,0.036055]
[1733634744951,0.05271435,99759.0,99758.0,0.05046244]
[1733634745247,0.05271435,99759.0,99758.0,0.05046243]
[1733634746548,0.05271459,99759.0,99758.0,0.05046243]
[1733634747645,0.08776859,99759.0,99758.0,0.05046243]
[1733634747848,0.26699395,99759.0,99758.0,0.05046243]
[1733634748244,0.26699395,99759.0,99758.0,0.050463]
[1733634748245,0.26764167,99759.0,99758.0,0.050463]